Cogmind - Beta 13 @@@ ROGUE MODE // 2024.04.13 @ 03:27:01 Player: Sapphichivemind Result: Self-destructed Performance ------------- Evolutions (1) 500 Regions Visited (2) 400 Robots Destroyed (13) 65 Value Destroyed (236) 236 Prototype IDs (0) 0 Alien Tech Used (0) 0 Bonus (0) 0 TOTAL SCORE: 1201 Bonus ------- None Cogmind --------- Core Integrity 328/400 Matter 244/300 Energy 250/250 System Corruption 0% Temperature Critical (506) Movement Walking (120) Location -9/Materials Parts ------- > --- POWER (1) -------- Ion Engine > --- PROPULSION (3) --- Aluminum Leg Aluminum Leg > --- UTILITY (2) ------ Visual Processing Unit Hardened Light Armor Plating > --- WEAPON (3) ------- Beam Cannon Assault Rifle Heavy Assault Rifle > --- INVENTORY (5) ---- Ion Engine Small Storage Unit Signal Interpreter Peak State ------------ > --- POWER ------------ Ion Engine > --- PROPULSION ------- Aluminum Leg Aluminum Leg Aluminum Leg > --- UTILITY ---------- Visual Processing Unit Hardened Light Armor Plating > --- WEAPON ----------- Beam Cannon Assault Rifle Heavy Assault Rifle > --- INVENTORY -------- Ion Engine Small Storage Unit Signal Interpreter [Rating: 12] Favorites ----------- Power Ion Engine Engine Ion Engine Propulsion Aluminum Leg Leg Aluminum Leg Utility Small Storage Unit Storage Small Storage Unit Processor Visual Processing Unit Protection Hardened Light Armor Plating Weapon EM Pulse Gun Energy Gun EM Pulse Gun Energy Cannon Beam Cannon Ballistic Gun Assault Rifle Build | -11 -10 -9 ------- Run | Yrd Mat Mat Slots Evolved 2 | . . 2 Power . | . . . Propulsion 1 | . . 1 Utility . | . . . Weapon 1 | . . 1 Parts Attached 14 | 6 1 7 Power 2 | 1 . 1 Engine 2 | 1 . 1 Core . | . . . Reactor . | . . . Propulsion 4 | 2 . 2 Treads . | . . . Leg 4 | 2 . 2 Wheel . | . . . Hover . | . . . Flight . | . . . Utility 3 | 1 1 1 Device . | . . . Storage 1 | 1 . . Processor 1 | . 1 . Hackware . | . . . Protection 1 | . . 1 Artifact . | . . . Weapon 5 | 2 . 3 Energy Gun 2 | 2 . . Energy Cannon 1 | . . 1 Ballistic Gun 2 | . . 2 Ballistic Cannon . | . . . Launcher . | . . . Special Weapon . | . . . Impact Weapon . | . . . Slashing Weapon . | . . . Piercing Weapon . | . . . Special Melee Weapon . | . . . Unidentified Prototypes . | . . . Parts Lost 3 | . 3 . Power 1 | . 1 . Propulsion . | . . . Utility . | . . . Weapon 2 | . 2 . Highest Loss Streak 3 | . 3 . To Critical Strikes . | . . . Average Slot Usage (%) 91 | . 88 93 Engine 12 | . 14 11 Leg 29 | . 28 29 Storage 9 | . 14 6 Processor 8 | . 3 11 Protection 2 | . . 4 Energy Gun 10 | . 27 . Energy Cannon 6 | . . 11 Ballistic Gun 11 | . . 19 Naked Turns . | . . . Heaviest Build 18 | 12 12 18 Greatest Support 30 | 20 20 30 Greatest Overweight (x) 2 | 2 . . Average Overweight (x) . | . . . Largest Inventory Capacity 8 | 8 8 8 Average Capacity 7 | 7 8 6 Most Carried 6 | 3 6 5 Average Carried 2 | 1 4 2 Final Capacity 8 | 8 8 5 Final Carried 6 | 2 6 3 Class Distribution -------------------- 62% | Mutant 19% | Tank 18% | Skirmisher Dominant Class ---------------- Mutant | -10/Materials Tank | -9/Materials Resources | -11 -10 -9 ----------- Run | Yrd Mat Mat Matter Collected 371 | 216 54 101 Remotely . | . . . Salvage Created 340 | . 197 143 Parts 22 | . 14 8 Haulers Intercepted . | . . . Recyclers Shooed 1 | . . 1 Parts Field Recycled . | . . . Retrieved Matter . | . . . Parts Self-Destructed . | . . . Prevented . | . . . Kills | -11 -10 -9 ------- Run | Yrd Mat Mat Combat Hostiles Destroyed 9 | . 6 3 Guns 9 | . 6 3 Classes Destroyed 4 | . 3 1 Recycler 1 | . . 1 Watcher 3 | . 1 2 Swarmer 6 | . 3 3 Grunt 3 | . 3 . Best Kill Streak 5 | . 4 5 Combat Bots Only 3 | . 3 3 Max Kills in Single Turn 1 | . 1 1 Gunslinging . | . . . Exploded . | . . . Melee . | . . . Uniques/NPCs Destroyed . | . . . Combat | -11 -10 -9 -------- Run | Yrd Mat Mat Hostile Shots Fired 66 | . 32 34 Missed 17 | . 8 9 Damage Taken 479 | . 231 248 Core 95 | . 23 72 Absorbed by Shields . | . . . Regen/Repaired (Parts) 27 | . . 27 Core Remaining (%) 95 | 100 90 . Volleys Fired 32 | . 15 17 Largest 3 | . 2 3 Hottest 103 | . 80 103 Shots Fired 76 | . 30 46 Gun 59 | . 30 29 Cannon 17 | . . 17 Launcher . | . . . Special . | . . . Kinetic 29 | . . 29 Thermal 17 | . . 17 Explosive . | . . . Electromagnetic 30 | . 30 . Robot Hit Streak 2 | . 2 2 Robot Miss Streak 5 | . 5 5 Penetration Max . | . . . Secondary Targets . | . . . Shots Hit Robots 23 | . 9 14 Core Hits 15 | . 9 6 Critical Kills 2 | . . 2 Critical Parts Destroyed . | . . . Critical Strikes 2 | . . 2 Meltdown 1 | . . 1 Destroy 1 | . . 1 Melee Attacks . | . . . Impact . | . . . Slashing . | . . . Piercing . | . . . Sneak Attacks . | . . . Combat Hostiles . | . . . Follow-up Attacks . | . . . Damage Inflicted 485 | . 194 291 Guns 295 | . 144 151 Cannons 140 | . . 140 Explosions 50 | . 50 . Melee . | . . . Ramming . | . . . Kinetic 151 | . . 151 Thermal 190 | . 50 140 Explosive . | . . . Electromagnetic 144 | . 144 . Impact . | . . . Slashing . | . . . Piercing . | . . . Highest Corruption . | . . . Average Corruption . | . . . Corruption Purged . | . . . Corruption Blocked . | . . . Overload Shots . | . . . Overflow Damage 10 | . 10 . Projectiles . | . . . Explosions 10 | . 10 . Melee . | . . . Knockbacks . | . . . Impact . | . . . Kinetic . | . . . Secondary . | . . . Self-Inflicted Damage . | . . . Shots . | . . . Rammed . | . . . Targets Rammed . | . . . Kicked . | . . . Crushed . | . . . Highest Temperature 506 | . 102 506 Average Temperature 110 | . 43 181 Received Heat Transfer 171 | . 87 84 Effects 4 | . . 4 Shutdowns 1 | . . 1 Interference 3 | . . 3 Siege Activations . | . . . Robots Corrupted . | . . . Combat Hostiles . | . . . Parts Fried . | . . . Impact Corruptions . | . . . Robots Melted 1 | . . 1 Combat Hostiles . | . . . Parts Melted 2 | . . 2 Heat Transferred 396 | . 100 296 Parts Sabotaged . | . . . Parts Stolen . | . . . Parts Stripped . | . . . Power Chain Reactions 1 | . 1 . Alert | -11 -10 -9 ------- Run | Yrd Mat Mat Peak Influence 207 | . 195 207 Initial 69 | . . 69 Average 88 | . 91 111 Maximum Alert Level 1 | . . 1 Low Security (%) 97 | 100 100 94 Level 1 2 | . . 5 Level 2 . | . . . Level 3 . | . . . Level 4 . | . . . Level 5 . | . . . High Security . | . . . Max Security . | . . . Squads Dispatched 1 | . 1 . Investigation 1 | . 1 . Extermination . | . . . Reinforcement . | . . . Assault . | . . . Garrison . | . . . Intercept . | . . . Searches Triggered . | . . . Construction Impeded . | . . . Haulers Reinforced . | . . . Active Scanning Responses . | . . . Cargo Convoy Interrupts . | . . . Stealth | -11 -10 -9 --------- Run | Yrd Mat Mat Distress Signals 2 | . 1 1 Communications Jammed . | . . . Distress Signals . | . . . Times Spotted 19 | . 7 12 Peak Tracking Total 6 | . 4 6 Tactical Retreats . | . . . Traps | -11 -10 -9 ------- Run | Yrd Mat Mat Traps Triggered 1 | . 1 . Indirectly . | . . . Trap Hack Attempts . | . . . Triggered . | . . . Disarmed . | . . . Reprogrammed . | . . . Reused . | . . . Traps Extracted . | . . . Installed . | . . . Triggered . | . . . Machines | -11 -10 -9 ---------- Run | Yrd Mat Mat Machines Disabled 2 | . 2 . Max in Single Turn 1 | . 1 . Machines Repaired . | . . . Machines Dismantled . | . . . Machines Sabotaged . | . . . Overloaded Fab Kills . | . . . Hacking | -11 -10 -9 --------- Run | Yrd Mat Mat Machines Accessed 4 | . 1 3 Terminals 3 | . 1 2 Fabricators . | . . . Repair Stations 1 | . . 1 Recycling Units . | . . . Scanalyzers . | . . . Garrison Access . | . . . Total Hacks 13 | . 2 11 Successful 9 | . . 9 Failed 4 | . 2 2 Catastrophic . | . . . Database Lockouts . | . . . Manual . | . . . Terminals 9 | . 2 7 Fabricators . | . . . Repair Stations 4 | . . 4 Recycling Units . | . . . Scanalyzers . | . . . Garrison Access . | . . . Terminal Hacks 5 | . . 5 Emergency Access Points 1 | . . 1 Dispatch Records 1 | . . 1 Security Status 1 | . . 1 Hauler Manifests 1 | . . 1 Zone Layout 1 | . . 1 Fabricator Hacks . | . . . Repair Station Hacks 4 | . . 4 Scan Component 2 | . . 2 Repair 2 | . . 2 Recycling Unit Hacks . | . . . Scanalyzer . | . . . Garrison Access Hacks . | . . . Unauthorized Hacks . | . . . Terminals . | . . . Fabricators . | . . . Repair Stations . | . . . Recycling Units . | . . . Scanalyzers . | . . . Garrison Access . | . . . Data Cores Recovered . | . . . Used . | . . . Hacking Detections 3 | . 1 2 Full Trace Events . | . . . Feedback Events . | . . . Feedback Blocked . | . . . Robot Schematics Acquired . | . . . Robots Built . | . . . Authchips . | . . . Time . | . . . Total Robot Build Rating . | . . . Part Schematics Acquired . | . . . Parts Built . | . . . Authchips . | . . . Time . | . . . Total Part Build Rating . | . . . Parts Repaired 2 | . . 2 Time 52 | . . 52 Parts Recycled . | . . . Recycled Matter . | . . . Retrieved Matter . | . . . Retrieved Components . | . . . Parts Scanalyzed . | . . . Part Schematics Acquired . | . . . Parts Damaged . | . . . Bothacking | -11 -10 -9 ------------ Run | Yrd Mat Mat Used RIF Installer . | . . . Robots Hacked . | . . . Non-combat . | . . . Combat . | . . . Robot Hacks Applied . | . . . Relay Couplers Released . | . . . Fabnet Peak Effective % . | . . . Robots Rewired . | . . . Allies Hacked . | . . . Hacks Repelled . | . . . Allies | -11 -10 -9 -------- Run | Yrd Mat Mat Total Allies . | . . . Largest Group . | . . . Highest-Rated Group . | . . . Highest-Rated Ally . | . . . Total Orders . | . . . Ally Attacks . | . . . Total Damage . | . . . Kills . | . . . Allies Corrupted . | . . . Allies Melted . | . . . Intel | -11 -10 -9 ------- Run | Yrd Mat Mat Robot Analysis Total . | . . . Derelict Logs Recovered . | . . . Drone Launches . | . . . Drone Recoveries . | . . . Exploration | -11 -10 -9 ------------- Run | Yrd Mat Mat Turns Passed 442 | 66 146 230 Spaces Moved 266 | 52 80 134 Core 20 | 20 . . Treads . | . . . Legs 246 | 32 80 134 Wheels . | . . . Hover . | . . . Flight . | . . . Fastest Speed 50 | 50 120 120 Average Speed 116 | 100 120 120 Slowest Speed 150 | 150 120 120 Overloaded Moves . | . . . Propulsion Burnouts . | . . . Robots Hopped . | . . . Cave-ins Triggered . | . . . Exploration Rate (%) 12 | 3 22 12 Regions Visited 2 Branch Regions . Pre-discovered Areas . | . . . Known Exits Taken . | . . . Unknown Exits Taken 2 | 1 1 . Scrap Searched . | . . . Spaces Dug . | . . . Terrain Destroyed 3 | . 3 . Melee . | . . . Projectile . | . . . AOE 3 | . 3 . Terrain Rammed . | . . . Walls Destroyed . | . . . Machines Disabled . | . . . Actions | -11 -10 -9 --------- Run | Yrd Mat Mat Total 330 | 65 100 165 Wait 4 | . . 4 Move 264 | 51 79 134 Hop . | . . . Pick Up 16 | 8 5 3 Fast Attach . | . . . Attach 13 | 6 1 6 Detach . | . . . Swap 1 | . . 1 Drop . | . . . Fire 32 | . 15 17 Melee . | . . . Ram . | . . . Kick . | . . . Crush . | . . . Escape Stasis . | . . . Rewire . | . . . Trap . | . . . Miscellaneous . | . . . Route ------- -11/Scrapyard -10/Materials -9/Materials History --------- Turn | Location | Event 20 | -11/Scrapyard | Discovered new exit (range 15) 67 | -11/Scrapyard | Entered Materials 177 | -10/Materials | Discovered new exit (range 18) 213 | -10/Materials | Entered another Materials area 213 | -9/Materials | Evolved 2 slots: Propulsion x1, Weapon x1 244 | -9/Materials | Lost 3 parts (1p2w) 396 | -9/Materials | Repaired Aluminum Leg 422 | -9/Materials | Repaired Aluminum Leg 443 | -9/Materials | Self-destructed Last Messages --------------- 00422_ Repair station completes Aluminum Leg repairs. 00424_ R-06 Scavenger suffers critical hit (Meltdown). 00424_ Com. Wheel melted. 00424_ Lgt. Ion Engine melted. 00426_ R-06 Scavenger collects Flight Unit. 00427_ W-16 Scout destroyed. 00429_ R-06 Scavenger collects Visual Processing Unit. 00431_ S-10 Pest destroyed. 00432_ R-06 Scavenger collects Signal Interpreter. 00435_ Acquired 84 matter. 00437_ Critical hit (Burn: +37). 00439_ Power failure, Ion Engine shutdown. 00443_ Overheating: System interference. 00443_ Beam Cannon temporarily disabled. 00443_ Visual Processing Unit temporarily disabled. Map ----- +----------------------------------------------------+ | ?????????????????????????????????????????????????? | | ?????????????????????????????????????????????????? | | ?????????????????????????????????????????????????? | | ?????????????????????????????????????????????????? | | ?????????????????????????????????????????????????? | | ?????????????????????????????????????????????????? | | ?????????????????????????????????????????????????? | | ?????????????????????????????????????????????????? | | ?????????????????????????????????????????????????? | | ?????????????????????????????????????????????????? | | ?????????????????????????????????????????????????? | | ?????????????????????????????????????????????????? | | ????????????????????????????????#????????????????? | | ??????????????????????????????" #????????????????? | | ????????????????????????????""" #????????????????? | | ????????????????????????????""" #????????????????? | | ????????????????????????????"" #????????????????? | | ???????????????????????????? #????????????????? | | ???????????????????????????? ?????????????????? | | ?????????????????##????????? ??????????????????? | | ?????????????????# ????????*[???????????????????? | | ?????????????????# ?????###+###?????????????????? | | ?????????????????? ????# %% #######+## #????? | | ??????????????????? ???#%% g g a +????? | | ???????????# ######/####w%! r ?????? | | ???????????+ a ss @*= ??????? | | ????????????????#####s ####??????????????? | | ????????????????????# """ #?????????????????? | | ????????????????????# ^ =R" #?????????????????? | | ????????????????????# ^ ^""" #?????????????????? | | ?????????????????#### ^ #?????????????????? | | ????????????????##! #?????????????????? | | ????????????????#! #?????????????????? | | ????????????????#! = #?????????????????? | | ????????????????#! #?????????????????? | | ????????????????#! ####+####????????????????? | | ????????????????##! ?# #????????????????? | | ?????????????????#### ?# """ #????????????????? | | ????????????????????# ?# """ #????????????????? | | ????????????????????# ?# """ #????????????????? | | ????????????????????# ?# #????????????????? | | ????????????????????# ??# = #????????????????? | | ????????????????????# ??####+###????????????????? | | ????????????????????# ?????# #??????????????????? | | ????????????????????? ??????# #??????????????????? | | ????????????????????????????# #??????????????????? | | ????????????????????????????# #??????????????????? | | ????????????????????????????# #??????????????????? | | ????????????????????????????# #??????????????????? | | ????????????????????????????# #??????????????????? | +----------------------------------------------------+ Best States ------------- Heat Dissipation 28 Energy Generation 10 Energy Capacity 250 Matter Stores 300 Matter Capacity 300 Sight Range 18 Terrain Scan Density 10 Armor Coverage 150 Evasion (%) 55 Item Schematics ----------------- None Robot Schematics ------------------ None Fabricated ------------ Nothing Alien Tech Used ----------------- None Achievements -------------- None Challenges ------------ None Game ------ Seed Sapphic Manual? 1 Play Time 00:11:09 Cumulative 11.5 hours Start 2024.04.13 @ 03:19:17 End 2024.04.13 @ 03:27:01 Sessions 1 Manual Loads 0 Difficulty Rogue Special Mode None Game No. 29 Rogue 29 Adventurer 0 Explorer 0 Win Type - Total 0 Types 0/0/0/0/0/0/0/0/0 Lore% 12 Gallery% 18 Achievement% 16 Wizard Run 0 Options --------- Layout 1 ASCII 0 Keyboard 0 Movement Mouse Keybinds 0 Fullscreen 1 Font 18/SmallcapsGlow Map View 50x40 Zoom Use 0% Tactical HUD 1 Map Filters NONE Filters NONE Steam 0 RUN: abbfc5d3-ff09-4a2e-be0f-7b5026425538